bitfinex/quotes_ETHUSD_20251111
["timestamp","ask_amount","ask_price","bid_price","bid_amount"]
[1762831744906,3.34178604,3625.4,3625.3,0.9574]
[1762831745402,3.95178426,3625.4,3625.3,0.4989]
[1762831745607,4.59478426,3625.4,3625.3,0.4989]
[1762831746506,2.75869679,3624.9,3624.8,0.4585]
[1762831746813,2.75854459,3625.1,3624.9,0.1918]
[1762831746966,3.34354282,3625.0,3624.9,0.1918]
[1762831747167,3.34354282,3625.0,3624.9,0.6503]
[1762831747406,3.34354282,3625.0,3624.9,1.1492]
[1762831749329,0.58492214,3625.0,3624.9,1.1492]
[1762831749744,3.34354282,3625.0,3624.9,1.1512]
[1762831750598,0.58492214,3625.0,3624.9,1.1512]
[1762831751213,3.34354282,3625.0,3624.9,1.1512]
[1762831751610,2.75862068,3625.0,3624.9,1.1512]
[1762831751948,3.34388432,3625.0,3624.9,1.1512]
[1762831753735,4.02727982,3625.0,3624.9,0.002]
[1762831753947,4.02727982,3625.0,3624.9,0.5009]
[1762831754100,4.75885937,3625.0,3624.9,0.5009]
[1762831754741,4.75885937,3625.0,3624.9,0.9594]
[1762831754951,4.07546387,3625.0,3624.9,0.9594]
[1762831756855,4.07546387,3625.0,3624.9,0.5009]
[1762831757256,3.34388432,3625.0,3624.9,0.5009]
[1762831757623,4.32738432,3625.0,3624.9,0.002]
[1762831758051,3.83978432,3625.0,3624.9,0.002]
[1762831758219,4.69420406,3625.0,3624.9,0.002]
[1762831758418,4.19830406,3625.0,3624.9,0.002]
[1762831759142,5.65662596,3625.0,3624.9,0.002]
[1762831759345,4.19830406,3625.0,3624.9,0.002]
[1762831759717,4.69420406,3625.0,3624.9,0.002]
[1762831760219,2.75915349,3624.3,3622.2,0.1061]
[1762831760422,0.73407125,3623.0,3622.4,0.643]
[1762831760649,1.31933489,3622.9,3622.4,0.643]
[1762831760847,0.58526364,3622.8,3622.5,0.4585]
[1762831761029,0.58526364,3622.7,3622.5,0.4585]
[1762831761353,0.58526364,3622.6,3622.5,0.4585]
[1762831761864,0.58526364,3622.6,3622.5,0.9574]
[1762831763244,1.31933489,3622.6,3622.3,0.643]
[1762831763448,0.73407125,3622.6,3622.5,0.4989]
[1762831763648,0.58762318,3622.6,3622.5,0.4989]
[1762831763844,0.58762318,3622.6,3622.5,0.9574]
[1762831764137,3.34807147,3622.6,3622.5,0.9574]
[1762831764474,3.34807147,3622.6,3622.5,0.4989]
[1762831765047,2.7605989,3622.5,3622.3,0.643]
[1762831765252,0.58762318,3622.4,3621.9,0.1856]
[1762831765447,0.97876167,3622.2,3621.9,0.6748]
[1762831765648,0.58762318,3622.1,3621.9,0.6748]
[1762831765874,0.58762318,3622.0,3621.9,0.1856]
[1762831766074,0.58762318,3622.0,3621.9,0.6676]
[1762831766370,0.58762318,3622.0,3621.9,0.482]
[1762831766573,0.58762318,3622.0,3621.6,0.1856]
[1762831766742,3.73961225,3622.1,3621.9,0.9712]
[1762831766938,3.73961225,3622.1,3622.0,0.482]
[1762831767139,4.32891327,3622.1,3622.0,0.482]
[1762831767540,3.34883902,3622.1,3622.0,0.484]
[1762831767742,4.10658375,3622.1,3622.0,0.484]
[1762831767954,3.34881779,3622.1,3622.0,0.484]
[1762831772071,0.58798844,3622.1,3622.0,0.484]
[1762831772261,3.34881779,3622.1,3622.0,0.484]
[1762831773382,4.32793805,3622.1,3622.0,0.484]
[1762831774085,1.5671087,3622.1,3622.0,0.484]
[1762831774262,1.5671087,3622.1,3622.0,0.9732]
[1762831774263,0.58798844,3622.1,3622.0,0.9732]
[1762831778160,1.32260956,3622.1,3622.0,0.9732]
[1762831779051,0.58798844,3622.1,3622.0,0.484]
[1762831779256,5.97748858,3622.1,3622.0,0.002]
[1762831779474,4.77893805,3622.1,3622.0,0.002]
[1762831779679,3.79981779,3622.1,3622.0,0.002]
[1762831779876,4.78951779,3622.1,3622.0,0.002]
[1762831780998,3.84881779,3622.1,3622.0,0.484]
[1762831781395,4.72088164,3622.1,3622.0,0.484]
[1762831781609,4.29981779,3622.1,3622.0,0.002]
[1762831781898,3.84881779,3622.1,3622.0,0.002]
[1762831782113,4.29981779,3622.1,3622.0,0.002]
[1762831782280,6.25766029,3622.1,3622.0,0.002]
[1762831782475,4.49181779,3622.1,3622.0,0.484]
[1762831782679,3.87919676,3622.1,3622.0,0.002]
[1762831782986,5.76796029,3622.1,3622.0,0.002]
[1762831783699,6.25766029,3622.1,3622.0,0.002]
[1762831784508,4.78951779,3622.1,3622.0,0.002]
[1762831785298,2.76113427,3621.7,3621.6,0.002]
[1762831785605,4.53819345,3621.7,3621.6,0.002]
[1762831786098,3.55602271,3621.7,3621.6,0.002]
[1762831786279,4.3840248,3621.7,3621.6,0.002]
[1762831787401,6.34698091,3621.7,3621.6,0.002]
[1762831787601,2.75559053,3621.7,3620.1,0.0451]
[1762831787813,0.7375209,3620.4,3620.1,0.0451]
[1762831788015,0.7375209,3620.4,3620.3,0.482]
[1762831788227,0.5900266,3620.4,3620.3,1.741712]
[1762831788393,0.5900266,3620.4,3620.3,2.230912]
[1762831788589,0.5900266,3620.4,3620.3,4.99311402]
[1762831788815,0.5900266,3620.4,3620.3,5.89861802]
[1762831789028,0.5900266,3620.4,3620.3,2.230912]
[1762831790295,1.3275475,3620.4,3620.3,2.230912]
[1762831791018,1.3275475,3620.4,3620.3,1.741712]
[1762831791197,0.5900266,3620.4,3620.3,1.741712]
[1762831791534,1.3275475,3620.4,3620.3,1.741712]
[1762831791732,1.3275475,3620.4,3620.3,1.259712]
[1762831791940,0.5900266,3620.4,3620.3,2.230912]
[1762831792513,0.5900266,3620.4,3620.3,5.49311402]
[1762831793248,0.5900266,3620.4,3620.3,4.99311402]
[1762831793423,0.5900266,3620.4,3620.3,2.730912]
[1762831793622,0.5900266,3620.4,3620.3,5.49311402]
[1762831793830,0.5900266,3620.4,3620.3,5.39861802]
[1762831794035,0.5900266,3620.4,3620.3,5.89861802]
[1762831794237,0.7375209,3620.9,3620.4,4.02177345]
[1762831794434,0.59088678,3620.8,3620.7,0.482]
[1762831794636,0.59088678,3620.8,3620.7,0.645]
[1762831794845,0.59088678,3620.8,3620.7,1.6162]
[1762831795226,0.59088678,3620.8,3620.7,1.127]
[1762831795544,1.32840768,3620.8,3620.7,1.127]
[1762831796143,0.59088678,3620.8,3620.7,1.127]
[1762831796462,0.59088678,3620.8,3620.7,1.5904]
[1762831797460,0.59088678,3620.8,3620.7,1.127]
[1762831797832,3.80730737,3620.8,3620.7,0.645]
[1762831798255,4.6842569,3620.8,3620.7,0.645]
[1762831798428,4.6842569,3620.8,3619.8,0.1856]
[1762831798429,2.40203631,3620.8,3619.4,0.182]
[1762831798629,2.40203631,3620.8,3618.7,0.59774786]
[1762831798630,0.7375209,3619.7,3618.7,0.4537]
[1762831798835,5.615396,3619.5,3619.0,0.6216]
[1762831799033,0.59088678,3619.4,3619.0,1.0753]
[1762831799242,0.59088678,3619.3,3619.0,1.0753]
[1762831799443,2.76286377,3619.5,3619.0,0.6393]
[1762831799628,0.5900899,3619.4,3619.1,0.646]
[1762831799824,0.5900899,3619.3,3619.1,0.646]
[1762831800154,0.5900899,3619.2,3619.1,0.7021]
[1762831800336,1.0446899,3619.2,3619.1,0.646]
[1762831800539,0.5900899,3619.2,3619.1,1.189]
[1762831800743,0.5900899,3619.2,3619.1,1.1329]
[1762831800945,4.69638379,3619.2,3619.1,0.646]
[1762831801182,4.21678379,3619.2,3619.1,0.646]
[1762831801330,0.99914224,3619.2,3619.1,1.1329]
[1762831801525,0.7375209,3620.0,3619.1,4.342523]
[1762831801836,0.7375209,3620.6,3620.1,2.76235463]
[1762831802054,0.7375209,3621.0,3620.2,1.1349]
[1762831802295,2.76182059,3620.8,3620.2,0.648]
[1762831802592,0.58935521,3620.7,3620.2,0.648]
[1762831802749,0.58935521,3620.6,3620.2,0.4537]
[1762831802945,0.58935521,3620.5,3620.3,0.648]
[1762831803179,3.26894507,3620.9,3620.3,0.648]
[1762831803497,0.58934159,3620.8,3620.4,0.4869]
[1762831803650,0.58934159,3620.7,3620.5,0.4537]
[1762831803845,0.7375209,3621.1,3620.5,0.4537]
[1762831804047,0.58937386,3621.0,3620.6,0.4869]
[1762831804246,0.58937386,3620.9,3620.6,0.4869]
[1762831804490,0.58937386,3620.8,3620.6,0.4869]
[1762831804646,0.58937386,3620.7,3620.6,0.4869]
[1762831804842,0.58937386,3620.7,3620.5,0.4537]
[1762831805092,0.58931653,3620.6,3620.3,0.648]
[1762831805299,2.76174775,3620.9,3620.3,1.1017]
[1762831805593,0.58939978,3620.8,3620.5,0.4869]
[1762831805792,0.58939978,3620.7,3620.5,0.4869]
[1762831806098,0.58939978,3620.6,3620.5,0.4869]
[1762831806790,0.58939978,3620.6,3620.3,0.648]
[1762831806997,0.58937344,3620.5,3620.3,0.648]
[1762831807298,2.94464233,3620.8,3620.3,0.648]
[1762831807450,0.58946766,3620.7,3620.3,0.648]
[1762831807654,0.6624,3620.8,3620.3,0.648]
[1762831807655,0.58946766,3620.6,3620.3,0.648]
[1762831807892,0.1828,3620.8,3620.3,0.648]
[1762831808100,0.58944086,3620.7,3620.3,0.648]
[1762831808261,3.97876992,3621.1,3620.3,1.1017]
[1762831808461,3.3512915,3621.0,3620.3,1.1017]
[1762831808698,0.58960641,3620.9,3620.3,1.1017]
[1762831808993,0.58960641,3620.8,3620.3,1.1017]
[1762831809193,0.58960641,3620.7,3620.3,1.1017]
[1762831809402,0.5897595,3620.6,3620.3,0.648]
[1762831809608,2.76190448,3620.7,3620.3,0.648]
[1762831809907,0.58986342,3620.6,3620.3,0.648]
[1762831810060,0.7375209,3621.2,3621.0,0.4869]
[1762831810262,0.7375209,3621.2,3620.4,0.4537]
[1762831810263,0.58995427,3621.1,3620.5,1.259712]
[1762831810468,0.58995427,3621.0,3620.6,0.647]
[1762831810696,3.35173333,3620.9,3620.6,0.647]
[1762831811000,0.58995427,3620.8,3620.6,0.647]
[1762831811310,2.76204944,3620.5,3619.1,0.0561]
[1762831811503,2.76204944,3620.5,3618.2,2.99575898]
[1762831811504,3.10133621,3619.6,3618.5,0.4537]
[1762831811702,0.92855427,3619.6,3619.1,0.0561]
[1762831812147,3.69129048,3619.6,3619.1,0.0561]
[1762831812429,4.47527459,3619.6,3619.1,0.0561]
[1762831814690,4.13667459,3619.6,3619.1,0.5098]
[1762831814889,4.59127459,3619.6,3619.1,0.5098]
[1762831815401,4.59127459,3619.6,3619.1,0.0561]
[1762831815595,0.78398411,3619.6,3619.5,0.4889]
[1762831815818,2.76273621,3619.6,3619.5,0.4889]
[1762831816119,2.76273621,3619.6,3619.5,0.002]
[1762831816822,3.21733621,3619.6,3619.5,0.002]
[1762831816986,2.76273621,3619.6,3619.5,0.002]
[1762831817390,1.21743345,3620.2,3619.5,0.4889]
[1762831817643,2.76273621,3619.6,3619.5,0.002]
[1762831818936,0.89440804,3620.1,3619.5,0.4889]
[1762831819223,0.58953833,3620.0,3619.5,0.4889]
[1762831819411,0.58953833,3620.1,3619.9,0.4869]
[1762831819591,3.35174752,3620.3,3619.5,0.4557]
[1762831819787,2.76245914,3620.0,3619.5,0.4557]
[1762831820037,0.28502114,3620.4,3619.5,0.4557]
[1762831820240,2.76227832,3620.2,3619.9,0.4869]
[1762831820417,2.76230117,3620.2,3619.9,0.4869]
[1762831820791,3.0471908,3620.4,3619.5,0.4557]
[1762831820792,0.28502114,3620.4,3620.1,0.4869]
[1762831821213,0.58962003,3620.6,3619.7,0.405504]
[1762831821414,0.58962003,3620.5,3619.5,0.002]
[1762831821608,0.5,3620.1,3619.5,0.002]
[1762831821807,2.76250051,3620.0,3619.5,0.002]
[1762831822005,2.76243093,3620.0,3619.5,0.002]
[1762831822211,3.24163616,3620.6,3619.5,0.4557]
[1762831822430,2.76249295,3620.0,3619.5,0.4557]
[1762831822616,3.74533467,3620.5,3619.5,0.4557]
[1762831822794,2.7625322,3619.9,3619.5,0.4557]
[1762831823216,2.76220202,3620.3,3619.8,0.4869]
[1762831823420,2.76250725,3619.9,3619.8,0.4869]
[1762831824333,2.76228866,3620.2,3619.8,0.4869]
[1762831824334,2.76243565,3620.0,3619.8,0.4869]
[1762831824552,2.76228866,3620.2,3619.8,0.4869]
[1762831824751,2.76225828,3620.3,3619.8,0.4869]
[1762831824949,2.76228502,3620.2,3619.8,0.4869]
[1762831825150,3.20639994,3620.2,3619.8,0.4869]
[1762831825312,3.2063966,3620.2,3619.8,0.4869]
[1762831825518,0.44411492,3620.2,3619.8,0.9865]
[1762831825853,0.001,3620.7,3620.1,0.6483]
[1762831826026,0.001,3620.7,3620.6,0.4663]
[1762831826518,0.001,3620.7,3620.6,0.9659]
[1762831827058,0.001,3620.7,3620.6,3.72787315]
[1762831827628,0.001,3620.7,3620.6,4.16099688]
[1762831828133,0.001,3620.7,3620.6,4.13337715]
[1762831828333,0.001,3620.7,3620.6,4.63337715]
[1762831828543,0.001,3620.7,3620.6,4.13337715]
[1762831828928,0.001,3620.7,3620.6,4.63337715]
[1762831829258,0.001,3620.7,3620.6,1.371404]
[1762831829452,0.001,3620.7,3620.6,4.13337715]
[1762831829749,0.001,3620.7,3620.6,4.63337715]
[1762831829952,0.001,3620.7,3620.6,4.13337715]
[1762831830467,0.001,3620.7,3620.6,5.39308915]
[1762831830770,0.001,3620.7,3620.6,5.89308915]
[1762831830959,0.001,3620.7,3620.6,2.631116]
[1762831831129,0.001,3620.7,3620.6,4.89348915]
[1762831831456,0.001,3620.7,3620.6,5.89308915]
[1762831831633,0.001,3620.7,3620.6,5.39308915]
[1762831831835,0.001,3620.7,3620.6,5.89308915]
[1762831832081,0.001,3620.7,3620.6,5.39308915]
[1762831832283,0.001,3620.7,3620.6,5.89308915]
[1762831832442,0.001,3620.7,3620.6,5.39308915]
[1762831832782,0.001,3620.7,3620.6,2.631116]
[1762831832947,0.001,3620.7,3620.6,5.39308915]
[1762831833149,0.001,3620.7,3620.5,0.649]
[1762831834083,0.001,3620.7,3620.6,0.648]
[1762831834267,0.001,3620.7,3620.3,0.405504]
[1762831834470,3.03919033,3620.7,3620.4,0.648]
[1762831834679,3.49279033,3620.7,3620.4,0.648]
[1762831834883,0.48,3620.5,3620.4,0.648]
[1762831835045,0.27728505,3620.7,3620.4,0.648]
[1762831835443,0.001,3620.7,3620.6,0.4663]
[1762831836344,0.001,3620.7,3620.6,3.75549288]
[1762831836541,0.001,3620.7,3620.6,0.405504]
[1762831837154,0.001,3620.7,3620.1,0.182]
[1762831837355,0.481,3620.7,3620.2,0.648]
[1762831837579,0.481,3620.7,3620.3,0.648]
[1762831837580,2.7621002,3620.5,3620.3,0.648]
[1762831837779,0.64586126,3620.4,3619.9,0.002]
[1762831838087,2.7621002,3620.5,3620.0,0.648]
[1762831839073,2.76198963,3620.6,3620.0,0.648]
[1762831839285,2.76290568,3620.7,3620.0,0.648]
[1762831839485,2.76206537,3620.5,3620.0,0.648]
[1762831840549,2.76199242,3620.6,3620.0,0.648]
[1762831840792,2.76205748,3620.5,3620.0,0.648]
[1762831840986,0.001,3620.7,3620.0,0.648]
[1762831841145,0.001,3620.7,3620.0,1.907712]
[1762831841346,2.76203956,3620.6,3620.0,0.648]
[1762831841595,2.76205125,3620.5,3620.0,1.907712]
[1762831841800,0.001,3620.7,3620.1,0.1751]
[1762831842123,2.76204825,3620.6,3620.0,0.648]
[1762831842262,3.37959744,3620.6,3620.0,0.648]
[1762831842460,2.76206421,3620.5,3620.0,0.648]
[1762831843700,0.61754919,3620.6,3620.1,0.6747]
[1762831843905,2.76291918,3620.7,3620.1,0.6747]
[1762831844064,0.001,3620.7,3620.1,0.1751]
[1762831844266,2.76290158,3620.7,3620.1,2.93743505]
[1762831844519,2.76290158,3620.7,3619.9,1.261712]
[1762831844520,0.48,3620.2,3619.9,0.002]
[1762831844663,3.23803093,3620.0,3619.9,0.002]
[1762831844868,3.82792481,3620.0,3619.9,0.002]
[1762831845075,4.28152481,3620.0,3619.9,0.002]
[1762831845411,5.54123681,3620.0,3619.9,0.002]
[1762831845566,7.02493853,3620.0,3619.9,0.002]
[1762831846497,7.52493853,3620.0,3619.9,0.002]
[1762831846697,7.02493853,3620.0,3619.9,0.002]
[1762831847002,7.76160991,3620.0,3619.9,0.002]
[1762831847773,7.02493853,3620.0,3619.9,0.002]
[1762831850405,7.76099359,3620.0,3619.9,0.002]
[1762831852286,7.02493853,3620.0,3619.9,0.002]
[1762831852488,7.76099359,3620.0,3619.9,0.002]
[1762831852803,7.02493853,3620.0,3619.9,0.002]
[1762831854102,7.02493853,3620.0,3619.1,0.002]
[1762831854103,2.80943621,3619.6,3619.5,1e-08]
[1762831854310,9.33621757,3619.6,3619.5,1e-08]
[1762831854512,9.78981757,3619.6,3619.5,1e-08]
[1762831855214,10.52522525,3619.6,3619.5,1e-08]
[1762831855577,10.28981757,3619.6,3619.5,1e-08]
[1762831855974,10.40045708,3619.6,3619.5,1e-08]
[1762831856417,11.37934496,3619.6,3619.5,1e-08]
[1762831856624,11.37934496,3619.6,3618.7,1e-08]
[1762831856625,2.76334696,3618.8,3618.7,1e-08]
[1762831856819,3.35324084,3618.8,3618.7,1e-08]
[1762831857112,3.42662113,3619.4,3618.7,0.46440001]
[1762831857310,1.5913345,3619.5,3618.9,0.4644]
[1762831857512,2.76334696,3618.8,3618.7,1e-08]
[1762831857904,2.76334696,3618.8,3618.7,0.46440001]
[1762831858593,2.76334696,3618.8,3618.7,1e-08]
[1762831859810,3.76910291,3618.8,3618.7,1e-08]
[1762831860114,4.22250291,3618.8,3618.7,1e-08]
[1762831860296,3.76910291,3618.8,3618.7,1e-08]
[1762831862510,4.22250291,3618.8,3618.7,1e-08]
[1762831863313,4.87150291,3618.8,3618.7,1e-08]
[1762831863514,5.45798679,3618.8,3618.7,1e-08]
[1762831863815,6.71769879,3618.8,3618.7,1e-08]
[1762831864239,7.4517375,3618.8,3618.7,1e-08]
[1762831864439,7.36669879,3618.8,3618.7,1e-08]
[1762831865434,7.86669879,3618.8,3618.7,1e-08]
[1762831865761,7.9512591,3618.8,3618.7,1e-08]
[1762831865904,1.87149481,3619.5,3618.7,0.46440001]
[1762831866105,2.76319425,3619.0,3618.9,0.4644]
[1762831866354,2.76334696,3618.8,3618.7,1e-08]
[1762831866725,2.76334696,3618.8,3618.7,0.46440001]
[1762831867644,3.42662113,3619.5,3618.7,0.46440001]
[1762831867645,1.18696031,3619.7,3618.7,0.95620001]
[1762831867848,1.18696031,3619.7,3618.9,0.4644]
[1762831867849,2.76281254,3619.5,3618.9,0.4644]
[1762831868013,2.76294399,3619.4,3618.9,0.4644]
[1762831868208,2.76292497,3619.4,3619.0,0.51943194]
[1762831868411,2.76292497,3619.4,3619.3,0.6493]
[1762831868652,1.57476031,3620.1,3619.3,0.6493]
[1762831868958,2.76288887,3619.4,3619.3,0.6493]
[1762831869860,1.31190046,3620.0,3619.3,1.1411]
[1762831870066,0.73498388,3620.4,3619.9,0.4644]
[1762831870364,2.76279388,3619.6,3619.4,0.4918]
[1762831870562,4.08534793,3620.3,3619.3,0.1849]
[1762831870563,2.76281254,3619.5,3619.3,0.1849]
[1762831870723,2.76265609,3619.8,3619.3,0.1849]
[1762831871060,2.76281254,3619.5,3619.4,0.4644]
[1762831872337,0.001,3619.6,3619.4,0.9562]
[1762831872537,0.001,3619.6,3619.5,0.4644]
[1762831872747,0.001,3619.6,3619.5,0.98382812]
[1762831872948,0.001,3619.6,3619.5,0.9562]
[1762831873153,0.001,3619.6,3619.5,1.38933212]
[1762831873450,0.001,3619.6,3619.5,4.15214466]
[1762831873655,0.001,3619.6,3619.5,1.38933212]
[1762831874178,0.001,3619.6,3619.5,4.12451654]
[1762831875424,0.001,3619.6,3619.5,5.38422854]
[1762831875631,0.001,3619.6,3619.5,5.88422854]
[1762831875828,0.001,3620.7,3620.0,0.405504]
[1762831876131,0.001,3620.7,3620.6,0.4644]
[1762831876549,0.001,3620.7,3620.6,0.9562]
[1762831877739,0.001,3620.7,3620.6,1.361704]
[1762831878060,0.001,3620.7,3620.6,4.12367715]
[1762831878265,0.001,3620.7,3620.6,5.38338915]
[1762831878443,0.001,3620.7,3620.6,5.88338915]
[1762831881770,0.001,3620.7,3620.6,6.53138915]
[1762831882241,0.001,3621.1,3621.0,2.76166804]
[1762831882569,0.001,3621.1,3621.0,5.39128404]
[1762831882746,0.001,3621.1,3621.0,5.88308404]
[1762831884244,0.001,3621.5,3621.4,4.426579]
[1762831884441,0.001,3621.5,3621.4,6.037979]
[1762831884679,0.001,3621.5,3621.4,6.529779]
[1762831888433,0.001,3621.5,3621.4,3.768416]
[1762831888567,0.001,3621.5,3621.4,6.9066206]
[1762831890286,0.001,3621.5,3621.4,2.224112]
[1762831890489,0.001,3621.5,3621.4,2.371112]
[1762831891260,0.001,3621.5,3621.4,2.776616]
[1762831891697,0.001,3621.5,3621.4,3.276616]
[1762831891867,0.001,3621.5,3621.4,6.492779]
[1762831892438,0.001,3621.5,3621.4,2.371112]
[1762831892634,0.001,3621.5,3621.4,5.587275]
[1762831892821,0.001,3621.5,3621.4,6.492779]
[1762831893133,0.001,3621.5,3621.4,2.776616]
[1762831893447,0.001,3621.5,3621.4,1.516904]
[1762831894902,0.001,3621.5,3621.4,0.869904]
[1762831895222,0.001,3621.5,3621.4,5.345779]
[1762831895426,0.001,3621.5,3621.4,5.845779]
[1762831896104,0.001,3621.5,3621.4,5.345779]
[1762831897132,0.001,3621.5,3621.4,6.491779]
[1762831897319,0.001,3621.5,3621.4,3.730416]
[1762831897488,0.001,3621.5,3621.4,2.311216]
[1762831897686,0.4822,3621.5,3621.4,2.311216]
[1762831897893,0.001,3621.5,3621.4,2.311216]
[1762831898196,0.001,3621.5,3621.4,2.766616]
[1762831900635,0.001,3621.5,3621.4,5.527979]
[1762831901646,0.9325,3621.5,3621.4,1.905712]
[1762831901788,1.52123125,3621.5,3620.6,0.648]
[1762831901992,0.15222312,3621.4,3620.9,2.76174317]
[1762831902232,2.91360269,3621.4,3620.8,1.665216]
[1762831902429,0.15222312,3621.4,3620.8,1.665216]
[1762831902587,0.001,3621.5,3620.8,0.405504]
[1762831902588,0.58939675,3621.3,3620.8,0.405504]
[1762831902788,0.001,3621.5,3620.8,0.405504]
[1762831902789,2.7614118,3621.4,3620.8,0.405504]
[1762831903125,0.5895987,3621.3,3620.8,1.665216]
[1762831903437,0.58993373,3621.2,3620.8,1.665216]
[1762831903658,2.76231032,3621.5,3620.8,3.16731205]
[1762831903854,0.58996076,3621.4,3620.9,3.24410453]
[1762831904178,0.59033042,3621.3,3621.1,0.405504]
[1762831904449,0.001,3621.5,3621.4,0.4554]
[1762831904749,0.001,3621.5,3621.4,3.64988063]
[1762831904952,0.001,3621.5,3621.4,5.836779]
[1762831905611,0.001,3621.5,3621.4,5.336779]
[1762831906047,0.001,3621.5,3621.4,5.836779]
[1762831906649,0.001,3621.5,3621.4,5.336779]
[1762831906850,0.001,3621.5,3621.4,5.836779]
[1762831917578,0.001,3621.5,3621.4,12.425922]
[1762831918479,0.001,3621.5,3621.4,14.395858]
[1762831919381,0.001,3621.5,3621.4,19.922704]
[1762831919583,0.001,3621.5,3621.4,14.056784]
[1762831919783,0.001,3621.5,3621.4,5.336779]
[1762831919979,0.001,3621.5,3621.4,8.739173]
[1762831920222,0.001,3621.5,3621.4,9.239173]
[1762831920430,0.001,3621.5,3621.4,5.836779]
[1762831920585,0.001,3621.5,3621.4,16.138561]
[1762831920985,0.001,3621.5,3621.4,15.617858]
[1762831921594,0.001,3621.5,3621.4,15.501786]
[1762831921920,0.001,3621.5,3621.4,13.814542]
[1762831922321,0.001,3621.5,3621.4,10.494959]
[1762831922496,0.001,3621.5,3621.4,19.558898]
[1762831923309,0.001,3621.5,3621.4,17.751106]
[1762831923514,1e-08,3621.9,3621.8,3.66576203]
[1762831923829,1e-08,3621.9,3621.8,12.82480997]
[1762831924031,1e-08,3621.9,3621.8,6.07047403]
[1762831926980,1e-08,3621.9,3621.8,11.51337903]
[1762831927781,1e-08,3621.9,3621.8,11.01823803]
[1762831927988,1e-08,3621.9,3621.8,11.96422403]
[1762831928187,1e-08,3621.9,3621.8,10.35324203]
[1762831928598,1e-08,3621.9,3621.8,6.07047403]
[1762831929290,1e-08,3621.9,3621.8,5.16577003]
[1762831929492,1e-08,3621.9,3621.8,5.66497003]
[1762831929814,1e-08,3621.9,3621.8,6.07047403]
[1762831930039,1.16830001,3621.9,3621.8,3.40605803]
[1762831930309,1.16830001,3621.9,3621.8,4.66577003]
[1762831930495,1e-08,3621.9,3621.8,3.40605803]
[1762831930684,1e-08,3621.9,3621.8,4.40525803]
[1762831930893,1e-08,3621.9,3621.8,6.07047403]
[1762831931397,1e-08,3621.9,3621.8,6.53727403]
[1762831932000,1e-08,3621.9,3621.8,6.07047403]
[1762831933328,1e-08,3621.9,3621.8,6.53727403]
[1762831933695,1e-08,3621.9,3621.8,14.93813203]
[1762831934094,1e-08,3621.9,3621.8,11.06604103]
[1762831935094,1e-08,3621.9,3621.8,16.64317003]
[1762831935328,1e-08,3621.9,3621.8,15.74417003]
[1762831935492,1e-08,3621.9,3621.8,6.53727403]
[1762831935693,1e-08,3621.9,3621.8,8.66717303]
[1762831936237,1e-08,3621.9,3621.8,10.15690803]
[1762831937231,1e-08,3621.9,3621.8,15.65556903]
[1762831938103,1e-08,3621.9,3621.8,19.84130803]
[1762831939216,1e-08,3621.9,3621.8,29.30279403]
[1762831939431,1e-08,3621.9,3621.8,23.45573703]
[1762831939642,0.001,3622.0,3621.9,4.9761978]
[1762831939790,0.001,3622.0,3621.9,35.08595097]
[1762831939994,0.001,3622.0,3621.9,32.28573616]
[1762831940195,0.001,3622.0,3621.9,9.55223216]
[1762831940532,0.001,3622.0,3621.9,33.49552516]
[1762831941114,0.001,3622.3,3622.2,4.42596913]
[1762831941317,0.001,3622.3,3622.2,6.07016913]
[1762831941540,0.001,3622.3,3622.2,20.75302413]
[1762831942364,0.4832,3623.8,3623.7,3.66511434]
[1762831942556,0.4832,3623.8,3623.7,0.644]
[1762831942859,0.9726,3623.8,3623.7,3.40361034]
[1762831943515,0.9726,3623.8,3623.7,0.644]
[1762831943730,0.9726,3623.8,3623.7,3.40361034]
[1762831944269,0.9726,3623.8,3623.7,3.90361034]
[1762831945133,0.4894,3623.8,3623.7,8.41295734]
[1762831945525,0.1922,3624.0,3623.9,2.75945804]
[1762831945730,0.001,3624.3,3624.2,4.42444562]
[1762831945954,0.001,3624.3,3624.2,5.56844562]
[1762831946274,0.457,3624.3,3624.2,5.56844562]
[1762831946440,0.001,3624.3,3624.2,6.02074562]
[1762831946643,0.457,3624.3,3624.2,5.56844562]
[1762831946831,0.001,3624.3,3624.2,6.02074562]
[1762831947476,0.001,3624.3,3624.2,5.56844562]
[1762831947682,0.001,3624.3,3624.2,5.06844562]
[1762831947987,0.001,3624.3,3624.2,5.56844562]
[1762831948129,0.001,3624.3,3624.2,5.06844562]
[1762831948130,0.457,3624.3,3624.2,5.06844562]
[1762831948329,0.9549,3624.3,3624.2,5.06844562]
[1762831948793,0.9549,3624.3,3624.2,3.63742936]
[1762831948991,0.9549,3624.3,3624.2,1.47221336]
[1762831949202,0.9549,3624.3,3624.2,0.644]
[1762831951199,0.9549,3624.3,3624.2,3.40322962]
[1762831951400,0.9549,3624.3,3624.2,0.644]
[1762831953457,0.9549,3624.3,3624.2,3.40322962]
[1762831953798,0.9549,3624.3,3624.2,0.644]
[1762831954886,0.9549,3624.3,3624.2,3.40322962]
[1762831955490,0.001,3624.3,3624.2,4.30873362]
[1762831955688,0.457,3624.3,3624.2,5.56844562]
[1762831959508,0.001,3624.3,3624.2,5.56844562]
[1762831959688,0.001,3624.3,3624.2,6.02074562]
[1762831960606,0.001,3624.3,3624.2,5.56844562]
[1762831960914,0.457,3624.3,3624.2,2.809216]
[1762831961119,0.9549,3624.3,3624.2,0.644]
[1762831961324,1.32628424,3624.3,3624.2,0.644]
[1762831962090,0.9549,3624.3,3624.2,0.644]
[1762831962489,0.9549,3624.3,3624.2,3.40322962]
[1762831962838,0.9549,3624.3,3624.2,0.644]
[1762831964139,0.001,3624.3,3624.2,5.52074562]